bitfinex-derivatives/quotes_ETHF0:USTF0_20250102
["timestamp","ask_amount","ask_price","bid_price","bid_amount"]
[1735811724635,10.03512976,3453.7,3453.4,49.00960266]
[1735811724832,10.02384226,3454.1,3453.6,3.2078]
[1735811725140,7.96429441,3455.2,3454.9,0.2898]
[1735811725435,7.96429441,3455.2,3454.9,2.35540266]
[1735811725627,7.96429441,3455.2,3454.9,7.35540266]
[1735811725833,7.96429441,3455.2,3454.9,7.79210266]
[1735811726034,7.96429441,3455.2,3455.0,0.28979]
[1735811726230,3.2078,3456.1,3454.9,48.30230266]
[1735811726428,3.2078,3456.1,3456.0,0.28971]
[1735811726626,6.10380858,3456.1,3455.5,2.06560266]
[1735811726839,2.89600858,3455.6,3455.1,3.2078]
[1735811727029,4.05736858,3455.5,3455.1,3.2078]
[1735811727228,3.76760858,3455.5,3455.1,3.2078]
[1735811727540,8.54989746,3455.1,3455.0,2.35539266]
[1735811728234,11.44590604,3455.1,3454.9,0.4367]
[1735811728436,0.28982,3454.8,3454.3,0.28985]
[1735811728736,0.28982,3454.8,3453.9,3.2078]
[1735811728737,2.89600858,3454.8,3454.4,2.06560266]
[1735811729241,2.89600858,3454.8,3454.6,0.28982]
[1735811729535,8.54989746,3454.6,3454.4,2.06560266]
[1735811729734,8.54989746,3454.6,3454.5,0.28983]
[1735811730239,8.54989746,3454.6,3454.5,5.28983]
[1735811730433,8.54989746,3454.6,3454.5,5.56173]
[1735811730629,3.2078,3455.4,3455.2,0.28977]
[1735811730834,3.2078,3455.4,3455.2,2.06560266]
[1735811731029,3.2078,3455.4,3455.3,0.28977]
[1735811731331,3.2078,3455.4,3455.2,2.06560266]
[1735811731639,3.2078,3455.4,3455.2,43.15537266]
[1735811731941,0.2898,3455.0,3454.6,2.06560266]
[1735811732238,2.89600858,3454.8,3454.6,2.06560266]
[1735811732436,3.2078,3455.0,3454.6,2.06560266]
[1735811732737,3.2078,3455.0,3454.9,2.35540266]
[1735811733035,3.2078,3455.4,3454.9,2.06560266]
[1735811733237,6.10380858,3455.4,3455.3,0.28977]
[1735811733935,3.2078,3455.4,3455.3,0.28977]
[1735811734137,3.2078,3455.4,3455.2,0.28977]
[1735811734339,3.2078,3455.4,3455.3,0.0008]
[1735811734537,3.2078,3455.4,3455.3,0.29057]
[1735811735744,3.2078,3455.9,3455.8,0.28973]
[1735811736437,3.2078,3455.9,3455.8,0.71863]
[1735811736637,3.2078,3455.9,3455.8,41.51863]
[1735811737632,3.2078,3455.9,3455.8,0.71863]
[1735811737937,6.10380858,3455.9,3455.8,0.71863]
[1735811738642,6.10380858,3455.9,3455.3,0.0008]
[1735811738842,2.63591089,3455.9,3455.5,3.2078]
[1735811739040,2.63591089,3455.9,3455.8,0.28973]
[1735811739341,2.92563089,3455.9,3455.6,0.28974]
[1735811739643,2.63591089,3455.6,3455.5,3.2078]
[1735811740141,2.63591089,3455.6,3455.5,3.49755]
[1735811740741,2.63591089,3455.6,3455.5,3.2078]
[1735811741136,2.63591089,3455.6,3455.5,3.49755]
[1735811742338,2.63591089,3455.6,3455.5,3.2078]
[1735811742740,7.92565089,3455.6,3455.5,3.2078]
[1735811743646,0.28976,3455.4,3455.3,0.0008]
[1735811743846,2.92567089,3455.4,3455.3,0.0008]
[1735811744039,7.92567089,3455.4,3455.3,0.0008]
[1735811745141,0.28977,3455.3,3454.7,0.28982]
[1735811745348,2.63591089,3454.8,3454.7,0.28982]
[1735811745642,2.92573089,3454.8,3454.6,0.28982]
[1735811745850,2.63591089,3454.6,3454.5,3.2078]
[1735811746144,2.63591089,3454.6,3454.5,3.49764]
[1735811746446,7.92574089,3454.6,3454.5,3.2078]
[1735811746647,7.63591089,3454.6,3454.5,3.2078]
[1735811746854,7.92574089,3454.6,3454.5,3.2078]
[1735811747041,7.63591089,3454.6,3454.5,3.2078]
[1735811747351,7.63591089,3454.6,3454.5,3.49764]
[1735811748948,7.63416511,3454.6,3454.5,3.49764]
[1735811751253,2.63416511,3454.6,3454.5,3.49764]
[1735811751454,0.4602,3454.7,3454.6,0.28983]
[1735811751752,0.4602,3454.7,3454.6,0.75093]
[1735811751955,0.4382,3454.7,3454.6,0.75093]
[1735811752252,3.07236511,3454.7,3454.6,0.28983]
[1735811755152,3.36218511,3454.7,3454.5,3.49763]
[1735811755453,2.63416511,3454.6,3454.5,3.49763]
[1735811756556,7.92399511,3454.6,3454.5,3.2078]
[1735811757259,2.63416511,3454.6,3454.5,5.56324266]
[1735811758559,0.4382,3454.7,3454.6,0.28983]
[1735811758856,5.4382,3454.7,3454.6,0.28983]
[1735811761047,3.2078,3455.0,3454.5,5.27340266]
[1735811761247,0.5,3455.4,3454.9,5.27340266]
[1735811761458,0.83501531,3455.8,3455.7,0.28973]
[1735811761663,0.5,3455.8,3455.7,0.28973]
[1735811761961,0.5,3455.8,3455.7,41.08973]
[1735811762260,0.5,3455.8,3455.7,0.72903]
[1735811762648,3.2078,3456.3,3455.7,41.2393]
[1735811762960,0.72397,3457.5,3455.7,41.2393]
[1735811762961,3.2078,3456.7,3456.6,0.28966]
[1735811763251,0.00258983,3458.0,3456.9,3.2078]
[1735811763457,0.00258983,3458.0,3457.9,3.2078]
[1735811763656,0.00258983,3458.0,3457.9,2.98800632]
[1735811763849,0.05,3459.8,3457.9,11.78435721]
[1735811764048,7.865,3461.7,3459.0,0.28945]
[1735811764049,3.49714,3460.5,3459.0,0.28945]
[1735811764252,0.28270487,3460.4,3460.3,0.28935]
[1735811764561,2.8936,3460.9,3460.1,2.06560266]
[1735811764562,0.36741552,3461.2,3460.2,3.2078]
[1735811764859,0.36741552,3461.2,3460.1,2.06560266]
[1735811764860,3.2078,3462.4,3461.1,2.06560266]
[1735811765054,3.2078,3462.4,3460.8,5.27340266]
[1735811765055,3.2078,3462.4,3462.3,2.06560266]
[1735811765253,0.72231,3465.5,3462.3,2.06560266]
[1735811765456,2.8936,3464.0,3463.1,3.2078]
[1735811765656,0.7223,3465.5,3462.3,3.2078]
[1735811765657,3.2078,3463.4,3462.3,3.2078]
[1735811765853,2.8936,3462.6,3461.9,3.2078]
[1735811766056,2.8936,3462.4,3461.9,3.2078]
[1735811766250,7.8936,3462.6,3461.9,3.2078]
[1735811766449,2.8936,3462.4,3461.9,3.2078]
[1735811766659,2.8936,3462.3,3461.9,3.2078]
[1735811766854,5.0,3462.6,3461.9,3.2078]
[1735811767060,5.0,3462.6,3461.5,3.2078]
[1735811767061,2.8936,3462.0,3461.5,3.2078]
[1735811767263,2.8936,3461.6,3461.5,3.2078]
[1735811767568,3.2078,3462.1,3461.5,3.2078]
[1735811767860,2.8936,3461.6,3461.5,3.2078]
[1735811768056,2.8936,3461.6,3461.1,3.2078]
[1735811768266,5.0,3461.6,3461.1,3.2078]
[1735811768558,6.1014,3461.2,3459.9,3.2078]
[1735811768764,2.8936,3460.2,3459.9,3.2078]
[1735811768965,3.2078,3461.1,3459.9,3.2078]
[1735811769160,2.8936,3460.7,3460.3,3.2078]
[1735811769362,2.8936,3460.9,3460.3,3.2078]
[1735811769565,2.8936,3460.7,3460.3,3.2078]
[1735811769762,2.8936,3461.0,3460.5,0.28933]
[1735811770066,2.8936,3461.2,3460.7,3.2078]
[1735811770366,2.8936,3461.2,3460.8,0.28931]
[1735811770564,2.8936,3461.2,3460.7,3.2078]
[1735811770862,2.8936,3461.2,3460.8,0.28931]
[1735811771261,2.8936,3461.1,3460.7,3.2078]
[1735811771458,0.4237,3461.5,3461.0,0.28929]
[1735811771664,2.8936,3461.5,3461.1,0.28928]
[1735811771966,2.8936,3461.5,3461.4,3.49706]
[1735811772560,2.8936,3461.5,3461.4,3.2078]
[1735811774668,2.8936,3461.5,3461.4,3.49706]
[1735811775059,7.8936,3461.5,3461.4,3.2078]
[1735811775668,7.8936,3461.5,3461.0,3.2078]
[1735811775863,5.0,3461.5,3461.0,3.2078]
[1735811776066,2.8936,3461.4,3461.3,0.28927]
[1735811776377,2.8936,3461.5,3461.3,0.28926]
[1735811776669,0.28921,3462.0,3461.4,3.2078]
[1735811777064,2.45520783,3462.4,3461.4,3.2078]
[1735811777265,0.28921,3462.0,3461.4,3.2078]
[1735811777466,0.2892,3462.2,3461.4,3.2078]
[1735811777669,0.2892,3462.2,3461.4,3.49706]
[1735811777864,3.2078,3462.5,3461.5,0.28925]
[1735811778064,0.28919,3462.3,3461.4,3.49706]
[1735811778373,0.28922,3461.9,3461.4,3.2078]
[1735811778573,2.45520783,3462.4,3461.4,3.2078]
[1735811778574,0.28922,3462.0,3461.4,3.2078]
[1735811779066,0.28922,3462.0,3460.4,40.8]
[1735811779067,5.08904366,3462.6,3461.9,3.2078]
[1735811779474,5.08904366,3462.6,3460.9,2.45520783]
[1735811779475,0.28918,3462.4,3462.3,3.2078]
[1735811780068,0.4321,3462.5,3461.9,3.2078]
[1735811780369,0.28921,3462.1,3461.9,3.2078]
[1735811780572,0.4321,3462.5,3461.9,3.2078]
[1735811780573,0.28919,3462.3,3461.9,3.2078]
[1735811780971,0.4321,3462.5,3461.9,3.2078]
[1735811781283,0.4321,3462.5,3462.4,3.2078]
[1735811781473,0.28908,3463.6,3463.0,0.28912]
[1735811781668,3.2078,3463.7,3463.1,3.2078]
[1735811781870,0.28911,3463.2,3463.1,3.2078]
[1735811782772,5.28911,3463.2,3463.1,3.2078]
[1735811783169,3.2078,3463.7,3463.1,3.2078]
[1735811783369,2.45520783,3464.0,3463.1,3.2078]
[1735811783570,0.28911,3463.2,3463.1,3.2078]
[1735811785274,5.28911,3463.2,3463.1,3.2078]
[1735811785479,5.0,3463.2,3462.7,3.2078]
[1735811785673,0.28914,3462.8,3462.7,3.2078]
[1735811785873,0.28917,3462.4,3462.3,3.2078]
[1735811786073,0.28922,3461.9,3461.8,3.2078]
[1735811787879,1.223,3462.7,3461.8,3.2078]
[1735811788081,0.28922,3461.9,3461.8,3.2078]
[1735811788476,4.8478,3463.1,3461.8,3.2078]
[1735811788778,5.348,3463.1,3462.3,3.2078]
[1735811788980,0.28917,3462.4,3462.3,3.2078]
[1735811789277,5.348,3463.1,3462.3,3.2078]
[1735811789481,0.28917,3462.4,3462.3,3.2078]
[1735811790382,4.84781,3463.1,3461.9,3.2078]
[1735811790680,0.28921,3462.0,3461.9,3.2078]
[1735811791379,0.72258,3464.2,3462.0,0.72302]
[1735811791688,0.72258,3464.2,3463.6,3.2078]
[1735811791689,0.28907,3463.7,3463.6,3.2078]
[1735811792278,1.17731,3464.5,3463.6,3.2078]
[1735811792279,0.4548,3464.5,3463.6,3.2078]
[1735811792476,0.28902,3464.3,3464.2,3.2078]
[1735811793178,0.4255,3465.0,3464.2,3.2078]
[1735811793383,0.4255,3465.0,3464.6,3.2078]
[1735811793575,0.72207,3466.6,3464.8,2.45520783]
[1735811793887,0.72207,3466.6,3464.7,1.275]
[1735811793888,3.2078,3466.7,3465.9,3.2078]
[1735811794073,3.2078,3466.7,3466.0,0.28887]
[1735811794074,0.28885,3466.4,3466.0,0.28887]
[1735811794279,0.28885,3466.4,3465.9,3.2078]
[1735811794280,3.2078,3467.6,3466.3,3.2078]
[1735811794578,1.01066,3467.4,3466.4,3.2078]
[1735811794772,3.2078,3467.6,3466.4,3.2078]
[1735811794773,5.37805496,3467.5,3466.4,3.2078]
[1735811795072,0.28883,3466.5,3466.4,3.2078]
[1735811795478,8.2078,3466.5,3465.9,3.2078]
[1735811795684,0.28887,3466.0,3465.9,3.2078]
[1735811795875,3.2078,3466.0,3465.1,3.2078]
[1735811796075,2.45520783,3465.4,3464.9,3.2078]
[1735811796282,0.28896,3465.0,3464.9,3.2078]
[1735811796478,3.2078,3465.6,3464.9,3.2078]
[1735811796680,0.28896,3465.0,3464.9,3.2078]
[1735811797273,0.4211,3465.9,3464.9,3.2078]
[1735811797476,3.2078,3466.5,3465.3,3.2078]
[1735811797675,3.2078,3466.5,3465.7,3.2078]
[1735811798078,0.28889,3465.9,3465.7,3.2078]
[1735811798282,0.2888,3466.9,3465.9,0.28888]
[1735811798493,0.28884,3466.5,3466.1,3.2078]
[1735811798682,0.28878,3467.1,3466.1,3.2078]
[1735811798984,0.28885,3466.4,3466.1,3.2078]
[1735811799281,3.2078,3467.2,3466.1,3.2078]
[1735811799486,1.01075,3467.1,3466.1,3.2078]
[1735811799786,0.72197,3467.1,3466.1,3.2078]
[1735811799985,0.28879,3467.0,3466.1,3.2078]
[1735811800181,3.2078,3467.2,3466.1,3.2078]
[1735811800490,0.28884,3466.5,3466.1,3.2078]
[1735811800677,3.2078,3467.2,3466.1,3.2078]
[1735811800884,0.28886,3466.2,3466.1,3.2078]
[1735811803481,0.28889,3465.8,3465.7,3.2078]
[1735811807190,0.28889,3465.9,3465.7,3.2078]
[1735811807491,0.28889,3465.8,3465.7,3.2078]
[1735811811091,3.2078,3466.6,3465.7,3.2078]
[1735811811292,0.28889,3465.8,3465.7,3.2078]
[1735811811589,0.72209,3466.5,3465.7,3.2078]
[1735811811792,3.2078,3466.9,3466.1,3.2078]
[1735811812393,0.28882,3466.7,3466.6,3.2078]
[1735811812783,0.00265909,3468.0,3467.5,3.2078]
[1735811812986,3.2078,3469.7,3467.9,3.2078]
[1735811813296,0.28863,3469.0,3468.9,3.2078]
[1735811814398,0.28862,3469.1,3468.9,3.2078]
[1735811814595,3.2078,3469.7,3468.9,3.2078]
[1735811814788,3.2078,3470.5,3469.3,3.2078]
[1735811815090,0.28855,3469.9,3469.8,3.2078]
[1735811815494,0.4372,3470.8,3469.8,3.2078]
[1735811815696,0.28857,3469.9,3469.8,3.2078]
[1735811815987,0.72126,3470.7,3468.7,1.273]
[1735811815988,0.28861,3469.4,3469.3,3.2078]
[1735811816190,3.2078,3470.7,3469.3,3.2078]
[1735811816391,3.2078,3470.7,3469.4,3.2078]
[1735811816392,3.2078,3470.2,3469.4,3.2078]
[1735811816599,0.2886,3469.5,3469.4,3.2078]
[1735811817088,0.2886,3469.6,3469.4,3.2078]
[1735811817293,3.2078,3470.2,3469.4,3.2078]
[1735811817490,0.2886,3469.5,3469.4,3.2078]
[1735811818298,3.2078,3470.2,3469.4,3.2078]
[1735811818494,0.2886,3469.5,3469.4,3.2078]
[1735811819299,3.2078,3470.2,3469.4,3.2078]
[1735811819496,0.2886,3469.5,3469.4,3.2078]
[1735811819990,3.2078,3470.2,3468.9,3.2078]
[1735811820193,0.28864,3469.0,3468.9,3.2078]
[1735811820786,3.2078,3470.2,3468.9,8.2078]
[1735811820992,3.2078,3471.1,3470.1,3.2078]
[1735811821187,0.28851,3470.6,3470.5,3.2078]
[1735811821386,2.77804695,3472.4,3470.5,3.2078]
[1735811821387,3.2078,3473.1,3470.5,8.2078]
[1735811821604,3.2078,3473.1,3472.3,3.2078]
[1735811821605,0.28305957,3473.0,3472.3,3.2078]
[1735811821787,0.7207,3473.4,3472.3,3.2078]
[1735811821992,3.2078,3473.7,3472.4,44.0078]
[1735811822192,0.09634461,3473.5,3473.3,3.2078]
[1735811822389,0.09634461,3473.5,3473.3,3.16823082]
[1735811822594,0.28835,3472.5,3472.4,3.2078]
[1735811822898,0.28835,3472.5,3472.4,3.20121868]
[1735811823092,0.28828,3473.4,3472.4,3.20121868]
[1735811823292,3.30414461,3473.5,3472.0,2.77804695]
[1735811823296,0.28832,3472.9,3472.0,2.77804695]
[1735811823492,0.09634461,3473.5,3473.1,3.2078]
[1735811823702,0.28833,3472.8,3472.7,3.2078]
[1735811824004,4.5328,3473.4,3472.3,3.2078]
[1735811824194,3.2078,3473.4,3472.3,3.2078]
[1735811824498,5.09634461,3473.5,3471.2,1.325]
[1735811824499,0.28831,3473.0,3472.7,3.2078]
[1735811824692,3.30414461,3473.5,3472.7,3.2078]
[1735811824693,0.28832,3472.9,3472.7,3.2078]
[1735811824892,0.28833,3472.8,3472.7,3.2078]
[1735811825598,3.30414461,3473.5,3472.7,3.2078]
[1735811825599,0.09634461,3473.5,3472.7,8.2078]
[1735811825900,0.28828,3473.2,3473.1,3.2078]
[1735811826491,0.09634461,3473.5,3472.7,3.2078]
[1735811826696,0.28832,3472.8,3472.7,3.2078]
[1735811827599,0.28838,3472.0,3471.9,3.2078]
[1735811828201,0.72078,3472.9,3471.9,3.2078]
[1735811828599,0.28839,3472.0,3471.9,3.2078]
[1735811828990,0.28839,3472.0,3471.9,3.02565114]
[1735811829201,0.28842,3471.6,3471.5,3.2078]
[1735811829400,1.324,3472.3,3471.5,3.2078]
[1735811829601,0.28842,3471.6,3471.5,3.2078]
[1735811830000,1.324,3472.6,3471.5,3.2078]
[1735811830191,0.28838,3472.1,3472.0,3.2078]
[1735811830598,0.28843,3471.5,3471.4,3.2078]
[1735811830907,3.2078,3471.5,3470.5,0.0008]
[1735811831100,0.2885,3470.6,3470.5,0.0008]
[1735811831406,0.28855,3470.0,3469.9,3.2078]
[1735811831700,0.2886,3469.5,3469.4,3.2078]
[1735811831894,4.5318,3469.7,3468.1,44.0078]
[1735811832101,3.2078,3469.2,3468.1,44.0078]
[1735811832400,0.2887,3468.2,3468.1,3.2078]
[1735811832606,3.2078,3468.8,3468.1,3.2078]
[1735811832795,0.7215,3469.5,3468.5,3.2078]
[1735811832796,3.2078,3469.5,3468.5,3.2078]
[1735811833197,0.28863,3469.1,3469.0,3.2078]
[1735811833400,3.2078,3469.7,3468.5,3.2078]
[1735811833602,0.435,3470.0,3469.0,3.2078]
[1735811834004,0.28861,3469.4,3469.0,3.2078]
[1735811834198,3.2078,3469.9,3469.0,3.2078]
[1735811834501,0.28863,3469.2,3469.0,3.2078]
[1735811834806,0.435,3470.0,3469.0,3.2078]
[1735811835000,0.28864,3469.1,3469.0,3.2078]
[1735811835209,3.2078,3469.3,3468.6,3.2078]
[1735811835400,3.2078,3469.1,3468.2,44.0078]
[1735811835602,3.2078,3469.1,3468.2,3.2078]
[1735811835899,3.9294,3469.1,3467.7,3.2078]
[1735811836099,3.9294,3469.1,3467.8,40.8]
[1735811836297,3.2078,3468.7,3467.8,40.8]
[1735811836703,0.28874,3467.9,3467.8,40.8]
[1735811836896,0.2887,3468.5,3467.8,40.8]
[1735811837101,0.2887,3468.4,3468.3,3.2078]
[1735811837600,3.2078,3469.2,3467.9,3.2078]
[1735811837805,0.28871,3468.3,3467.9,3.2078]
[1735811838009,5.30638,3469.2,3467.9,3.2078]
[1735811838213,3.2078,3468.8,3467.9,3.2078]
[1735811838712,0.28873,3468.0,3467.9,3.2078]
[1735811839002,0.72173,3468.5,3467.3,3.2078]
[1735811839207,0.28875,3467.8,3467.3,44.0078]
[1735811839409,8.2078,3468.7,3467.3,44.0078]
[1735811839709,3.2078,3468.3,3467.3,44.0078]
[1735811840098,0.28877,3467.6,3467.3,44.0078]
[1735811840310,0.28878,3467.4,3467.3,44.0078]
[1735811841010,0.72181,3468.1,3467.3,3.2078]
[1735811841207,0.28875,3467.8,3467.7,3.2078]
[1735811841411,0.28875,3467.8,3467.7,44.0078]
[1735811841598,7.214,3469.4,3467.7,44.0078]
[1735811841599,3.2078,3469.2,3467.7,49.0078]
[1735811841910,0.28859,3469.7,3469.1,0.28863]
[1735811842111,0.28859,3469.7,3469.6,3.2078]
[1735811842406,3.2078,3470.6,3469.6,3.2078]
[1735811842606,3.2078,3470.6,3469.6,8.2078]
[1735811843109,0.28854,3470.3,3469.6,8.2078]
[1735811843314,0.28854,3470.3,3469.8,0.28857]
[1735811843605,0.28854,3470.3,3469.6,8.2078]
[1735811843606,3.2078,3470.6,3469.6,3.2078]
[1735811843806,0.28857,3470.0,3469.6,3.2078]
[1735811844008,3.2078,3470.6,3469.6,3.2078]
[1735811844408,0.28856,3470.0,3469.6,3.2078]
[1735811844615,0.28857,3469.9,3469.6,3.2078]
[1735811844806,0.28858,3469.8,3469.6,3.2078]
[1735811845012,0.72131,3470.5,3469.6,3.2078]
[1735811845214,0.28857,3469.9,3469.6,3.2078]
[1735811845410,0.28859,3469.7,3469.6,3.2078]
[1735811845611,0.72131,3470.5,3469.6,3.2078]
[1735811845813,0.28857,3470.0,3469.6,3.49639]
[1735811846111,0.28857,3469.9,3469.6,3.2078]
[1735811846307,0.28858,3469.8,3469.6,3.2078]
[1735811846807,3.2078,3470.6,3469.6,8.2078]
[1735811847011,0.28855,3470.2,3470.1,3.2078]
[1735811848712,0.28855,3470.2,3469.4,0.28861]
[1735811848713,3.2078,3470.6,3469.7,3.2078]
[1735811848906,0.28858,3469.8,3469.7,3.2078]
[1735811850008,0.28858,3469.8,3469.2,3.2078]
[1735811850009,0.28862,3469.3,3469.2,3.2078]
[1735811850210,3.2078,3469.8,3468.7,3.2078]
[1735811850408,0.28865,3469.0,3468.7,3.2078]
[1735811850711,3.2078,3469.8,3468.7,3.2078]
[1735811851212,3.2078,3469.2,3468.2,3.2078]
[1735811851415,0.28869,3468.5,3468.2,3.2078]
[1735811851710,0.28868,3468.6,3468.2,3.2078]
[1735811851912,0.28868,3468.7,3468.2,3.49651]
[1735811852314,0.2887,3468.3,3468.2,3.2078]
[1735811855120,0.28875,3467.7,3467.6,3.2078]
[1735811855319,0.72181,3468.1,3467.2,3.2078]
[1735811855616,0.28879,3467.3,3467.2,3.2078]
[1735811856413,0.72181,3468.1,3467.2,3.2078]
[1735811856618,0.28877,3467.5,3467.2,3.49659]
[1735811856819,0.28878,3467.4,3467.2,3.2078]
[1735811857115,0.28395695,3468.2,3467.2,3.49659]
[1735811857417,0.28878,3467.5,3467.2,3.49659]
[1735811857620,1.00575695,3468.2,3467.2,3.49659]
[1735811857915,0.28875,3467.7,3467.6,3.2078]
[1735811859223,0.2888,3467.2,3467.1,3.2078]
[1735811859418,3.2078,3467.8,3466.7,3.2078]
[1735811859613,0.28883,3466.8,3466.7,3.2078]
[1735811861323,0.28887,3466.4,3466.1,3.2078]
[1735811861517,1.378,3467.1,3466.1,3.2078]
[1735811861717,1.378,3467.2,3466.5,3.2078]
[1735811862312,0.4322,3467.3,3466.5,3.2078]
[1735811863224,0.28883,3466.8,3466.5,3.2078]
[1735811863422,0.4322,3467.3,3466.5,3.2078]
[1735811863623,0.28885,3466.6,3466.5,3.2078]
[1735811863827,0.4322,3467.3,3466.5,3.2078]
[1735811864020,0.28883,3466.8,3466.5,3.49665]
[1735811864220,0.28883,3466.8,3466.5,3.2078]
[1735811864522,0.28885,3466.6,3466.5,3.2078]
[1735811864716,0.2888,3467.2,3466.5,3.2078]
[1735811864911,0.4322,3467.3,3466.5,3.2078]
[1735811865622,3.2078,3468.7,3467.1,3.2078]
[1735811865823,0.28875,3467.8,3467.6,3.2078]
[1735811866129,0.28873,3468.0,3467.7,0.28875]
[1735811866321,0.4564,3468.6,3467.6,3.2078]
[1735811866522,0.28874,3467.9,3467.6,3.49656]
[1735811866725,0.74110597,3468.6,3467.6,3.2078]
[1735811867023,0.74109114,3468.6,3467.6,3.2078]
[1735811867224,0.72173,3468.5,3467.6,3.2078]
[1735811867622,0.72175,3468.4,3467.6,3.2078]
[1735811867818,0.28874,3467.9,3467.6,3.2078]
[1735811868020,0.28875,3467.7,3467.6,3.2078]
[1735811868220,0.28879,3467.3,3467.2,3.2078]
[1735811868613,0.28878,3467.4,3467.2,3.2078]
[1735811868818,1.369,3467.9,3467.2,3.2078]
[1735811869118,0.28799,3467.4,3467.2,3.2078]
[1735811869319,1.369,3467.9,3467.2,3.2078]
[1735811869724,0.72179,3468.2,3467.2,3.2078]
[1735811870028,0.28471333,3468.3,3467.7,3.2078]
[1735811870029,1.369,3468.3,3467.7,3.2078]
[1735811870322,0.28875,3467.8,3467.7,3.2078]
[1735811870522,0.28874,3467.9,3467.7,3.2078]
[1735811870716,3.2078,3468.4,3467.7,3.2078]
[1735811870916,0.28873,3468.0,3467.7,3.49655]
[1735811871322,3.2078,3468.4,3467.7,3.2078]
[1735811871524,0.4564,3468.6,3467.7,3.2078]
[1735811871819,0.28874,3467.9,3467.7,3.2078]
[1735811872027,0.4564,3468.6,3467.8,0.28874]
[1735811872217,0.4564,3468.6,3467.7,3.2078]
[1735811872218,0.4564,3468.6,3467.7,3.49655]
[1735811872419,0.28874,3467.9,3467.7,3.2078]
[1735811872819,0.28875,3467.8,3467.7,3.2078]
[1735811873220,0.28878,3467.4,3467.3,3.2078]
[1735811875329,3.2078,3467.6,3466.8,3.2078]
[1735811875526,0.28882,3466.9,3466.8,3.2078]
[1735811875730,0.28881,3467.1,3466.8,3.49662]
[1735811875931,0.2888,3467.2,3466.9,0.28882]
[1735811876225,0.4366,3467.5,3466.8,3.2078]
[1735811876429,0.4366,3467.5,3466.9,0.28882]
[1735811876623,0.2888,3467.2,3466.8,3.2078]
[1735811876824,0.28876,3467.7,3467.4,0.28877]
[1735811877026,0.28875,3467.7,3467.6,3.2078]
[1735811877325,1.7971,3468.5,3466.3,1.369]
[1735811877326,1.7971,3468.5,3467.3,3.2078]
[1735811877534,0.72175,3468.4,3467.4,3.2078]
[1735811877827,0.72175,3468.4,3467.5,0.28877]
[1735811877828,0.28875,3467.8,3467.5,0.28877]
[1735811878024,0.28876,3467.7,3467.4,3.49658]
[1735811878223,0.4281,3468.5,3467.4,3.2078]
[1735811878224,0.28877,3467.5,3467.4,3.2078]
[1735811878530,1.14984,3468.5,3467.4,3.49657]
[1735811878531,0.28876,3467.7,3467.4,3.49657]
[1735811878919,0.28877,3467.6,3467.4,3.2078]
[1735811879430,0.72179,3468.2,3467.4,3.2078]
[1735811879633,0.28877,3467.5,3467.4,3.2078]
[1735811879827,0.28877,3467.5,3467.0,3.2078]
[1735811880128,0.72183,3468.0,3467.0,3.2078]
[1735811880326,0.28569607,3468.1,3467.4,3.2078]
[1735811880731,0.28569607,3468.1,3467.5,0.28876]
[1735811880732,0.28874,3467.9,3467.5,0.28876]
[1735811880920,0.28874,3467.9,3467.6,0.28876]
[1735811881132,0.28569607,3468.1,3467.4,3.2078]
[1735811881328,0.69336744,3468.3,3467.4,3.2078]
[1735811881524,0.72181,3468.1,3467.4,3.2078]
[1735811881828,0.28873,3468.0,3467.8,3.2078]
[1735811882028,1.369,3468.3,3467.8,3.2078]
[1735811882232,1.369,3468.3,3467.4,3.2078]
[1735811882428,0.72181,3468.1,3467.4,3.2078]
[1735811882629,0.28877,3467.5,3467.4,3.2078]
[1735811883227,0.2888,3467.1,3467.0,3.2078]
[1735811883434,0.2888,3467.1,3466.2,0.3256]
[1735811883435,0.28884,3466.7,3466.6,3.2078]
[1735811883927,1.14919952,3467.2,3466.6,3.2078]
[1735811884132,0.28884,3466.7,3466.6,3.2078]
[1735811884440,0.28804,3466.7,3466.6,3.2078]
[1735811885135,0.69349952,3467.1,3466.6,3.2078]
[1735811885438,0.28884,3466.7,3466.6,3.2078]
[1735811887733,0.28887,3466.3,3466.2,3.2078]
[1735811889637,0.28887,3466.3,3463.8,1.44539]
[1735811889638,0.2889,3465.9,3465.8,3.2078]
[1735811890038,0.28894,3465.4,3465.3,3.2078]
[1735811891535,1.13519952,3465.9,3465.3,3.2078]
[1735811891741,0.2889,3465.9,3465.4,0.28894]
[1735811892045,0.2889,3465.9,3465.7,3.2078]
[1735811892544,0.28891,3465.9,3465.7,3.2078]
[1735811892945,0.28891,3465.8,3465.7,3.2078]
[1735811894440,0.4259,3466.2,3465.7,3.2078]
[1735811894744,0.28886,3466.1,3465.7,3.2078]
[1735811894937,0.28889,3465.9,3465.7,3.2078]
[1735811895239,0.28569607,3466.3,3465.7,3.2078]
[1735811895450,0.57453607,3466.5,3466.2,3.49666]
[1735811895740,3.2078,3467.0,3466.8,0.28881]
[1735811895741,0.28569607,3466.9,3466.8,0.28881]
[1735811895938,8.92503247,3467.0,3466.8,3.2078]
[1735811896133,9.21382247,3467.0,3466.8,3.2078]
[1735811896440,8.92503247,3467.0,3466.8,3.2078]
[1735811896641,8.92503247,3467.0,3466.9,0.2888]
[1735811896840,0.28878,3467.1,3466.9,0.2888]
[1735811897040,0.2888,3466.9,3466.8,3.2078]
[1735811897343,0.28876,3467.4,3466.8,3.2078]
[1735811897539,10.74878109,3468.2,3466.2,2.44769686]
[1735811897540,0.28580899,3467.8,3467.3,3.2078]
[1735811897747,10.02704109,3468.2,3467.4,0.28876]